bitfinex/quotes_SOLUSD_20250917
["timestamp","ask_amount","ask_price","bid_price","bid_amount"]
[1758076745151,0.66,237.48,237.47,51.52161479]
[1758076745350,0.66,237.48,237.47,1.68602078]
[1758076745588,0.66,237.48,237.47,15.28161479]
[1758076745866,0.66,237.48,237.47,13.59559401]
[1758076746366,0.3,237.49,237.48,39.59559401]
[1758076746568,0.3,237.49,237.48,76.09559401]
[1758076746949,0.96,237.49,237.48,76.09559401]
[1758076747151,0.96,237.49,237.48,80.30491449]
[1758076747351,0.96,237.49,237.48,30.20932048]
[1758076747850,2.25119084,237.49,237.48,30.20932048]
[1758076749966,0.96,237.49,237.48,43.80491449]
[1758076750860,2.25119084,237.49,237.48,30.20932048]
[1758076751061,2.25119084,237.49,237.48,66.78932048]
[1758076751269,2.25119084,237.49,237.48,30.20932048]
[1758076751462,2.25119084,237.49,237.48,4.20932048]
[1758076751658,2.25119084,237.49,237.47,36.58]
[1758076751857,1.95119084,237.48,237.47,2.25119084]
[1758076752065,1.95119084,237.48,237.46,36.6]
[1758076752380,1.95119084,237.47,237.46,40.81057763]
[1758076752575,1.95119084,237.47,237.46,4.21057763]
[1758076753163,1.95119084,237.47,237.45,36.62]
[1758076753367,1.95119084,237.46,237.45,40.83041682]
[1758076753556,1.95119084,237.46,237.45,4.21041682]
[1758076753753,1.95119084,237.46,237.36,10.53220011]
[1758076753754,4.21141292,237.45,237.37,13.59559401]
[1758076753984,1.29119084,237.4,237.39,43.80671513]
[1758076754282,1.95119084,237.4,237.39,43.80671513]
[1758076754594,1.95119084,237.4,237.39,4.21112112]
[1758076754765,0.66,237.4,237.39,4.21112112]
[1758076754956,0.66,237.41,237.39,4.21112112]
[1758076755158,1.95119084,237.4,237.39,4.21112112]
[1758076755771,1.29119084,237.41,237.39,22.01906308]
[1758076755968,1.29119084,237.43,237.4,36.6]
[1758076756280,1.29119084,237.44,237.41,13.59559401]
[1758076756582,1.95119084,237.46,237.43,13.59559401]
[1758076756754,0.3,237.49,237.43,13.59559401]
[1758076756755,0.66,237.48,237.43,13.59559401]
[1758076757080,1.29119084,237.46,237.43,13.59559401]
[1758076757281,1.29119084,237.44,237.42,36.6]
[1758076757489,0.66,237.43,237.42,36.6]
[1758076759583,0.66,237.43,237.42,40.87111253]
[1758076759782,1.95119084,237.43,237.39,26.0]
[1758076760085,1.29119084,237.4,237.39,26.0]
[1758076760775,0.66,237.44,237.39,26.0]
[1758076760978,1.29119084,237.42,237.39,30.21161209]
[1758076761162,1.95119084,237.42,237.39,34.42397962]
[1758076761363,0.66,237.41,237.39,34.42397962]
[1758076761572,1.29119084,237.42,237.39,34.42397962]
[1758076761777,1.95119084,237.42,237.39,34.42397962]
[1758076762792,1.29119084,237.45,237.41,13.59559401]
[1758076763096,1.95119084,237.45,237.41,13.59559401]
[1758076763290,0.66,237.44,237.41,13.59559401]
[1758076763504,2.09335241,237.43,237.42,3.49103859]
[1758076763704,26.0,237.42,237.38,0.03]
[1758076763983,2.58238168,237.39,237.38,0.03]
[1758076764360,7.1159542,237.39,237.38,0.03]
[1758076764583,1.95119084,237.39,237.38,0.03]
[1758076765088,6.16366819,237.39,237.38,0.03]
[1758076765467,6.16366819,237.39,237.25,10.53730724]
[1758076765468,26.0,237.36,237.22,0.72]
[1758076765671,1.29119084,237.26,237.22,0.72]
[1758076765867,1.29119084,237.27,237.24,13.59559401]
[1758076766072,0.71,237.3,237.22,14.31559401]
[1758076766278,1.29119084,237.26,237.22,27.25818333]
[1758076766480,0.71,237.29,237.22,27.25818333]
[1758076766682,1.29119084,237.27,237.22,27.25818333]
[1758076766893,0.71,237.29,237.24,13.59559401]
[1758076767073,10.53119339,237.39,237.26,13.59559401]
[1758076767074,1.29119084,237.31,237.26,13.59559401]
[1758076767269,0.71,237.34,237.28,13.59559401]
[1758076767479,1.29119084,237.33,237.28,13.59559401]
[1758076767699,1.29119084,237.33,237.28,0.72]
[1758076767899,0.71,237.36,237.29,26.72]
[1758076768207,1.29119084,237.35,237.3,13.59559401]
[1758076768391,2.00119084,237.34,237.3,13.59559401]
[1758076768576,1.29119084,237.34,237.3,14.31559401]
[1758076769089,1.29119084,237.34,237.3,18.52963986]
[1758076769886,1.29119084,237.35,237.31,0.72]
[1758076770069,1.29119084,237.35,237.3,17.80963986]
[1758076770269,1.29119084,237.34,237.3,18.52963986]
[1758076770472,1.29119084,237.34,237.3,17.80963986]
[1758076771194,1.29119084,237.35,237.3,17.80963986]
[1758076771384,1.29119084,237.34,237.3,13.59559401]
[1758076771770,2.00119084,237.34,237.3,13.59559401]
[1758076771966,1.29119084,237.33,237.3,13.59559401]
[1758076772196,1.29119084,237.34,237.3,13.59559401]
[1758076772382,2.00119084,237.34,237.3,13.59559401]
[1758076773617,0.71,237.34,237.3,13.59559401]
[1758076774476,0.71,237.37,237.31,0.72]
[1758076774679,0.71,237.37,237.3,26.0]
[1758076774909,1.29119084,237.35,237.3,26.72]
[1758076775207,2.00119084,237.35,237.3,26.72]
[1758076775974,1.29119084,237.35,237.31,0.72]
[1758076776199,1.29119084,237.36,237.31,0.72]
[1758076776972,0.71,237.38,237.31,0.72]
[1758076777174,1.29119084,237.38,237.32,13.59559401]
[1758076777370,1.29119084,237.4,237.34,13.59559401]
[1758076777904,0.06,237.36,237.34,13.59559401]
[1758076778105,0.06,237.36,237.35,0.72]
[1758076778796,0.06,237.36,237.35,14.31559401]
[1758076779595,0.06,237.36,237.35,51.83559401]
[1758076781197,0.06,237.36,237.35,37.52]
[1758076781399,2.06119084,237.36,237.35,37.52]
[1758076781597,1.35119084,237.36,237.34,26.0]
[1758076781983,0.71,237.35,237.32,51.09559401]
[1758076782184,2.00119084,237.34,237.32,51.09559401]
[1758076782482,0.06,237.36,237.3,13.62559401]
[1758076782483,2.00119084,237.33,237.3,13.62559401]
[1758076782682,1.29119084,237.32,237.31,26.0]
[1758076783100,1.29119084,237.32,237.3,0.03]
[1758076783279,1.29119084,237.31,237.3,0.03]
[1758076783478,2.00119084,237.31,237.3,0.03]
[1758076783876,2.72658179,237.31,237.3,0.03]
[1758076793735,4.21343163,237.34,237.3,0.03]
[1758076793938,2.01658179,237.31,237.3,0.03]
[1758076797210,2.01658179,237.33,237.3,0.03]
[1758076797409,2.01658179,237.32,237.3,0.03]
[1758076798735,0.67,237.34,237.3,0.03]
[1758076798927,2.01658179,237.32,237.3,0.03]
[1758076799508,2.01658179,237.31,237.3,0.03]
[1758076800103,4.88342632,237.34,237.3,0.03]
[1758076800332,2.01658179,237.31,237.3,0.03]
[1758076801234,6.90047922,237.31,237.3,0.03]
[1758076802643,0.67,237.31,237.3,0.03]
[1758076802844,0.67,237.35,237.3,0.03]
[1758076803046,2.01658179,237.32,237.3,0.03]
[1758076803644,2.68658179,237.32,237.3,0.03]
[1758076803842,2.01658179,237.32,237.3,0.03]
[1758076804355,2.01658179,237.31,237.3,0.03]
[1758076804539,0.67,237.34,237.3,0.03]
[1758076804739,4.21325349,237.35,237.3,0.7]
[1758076804940,2.01658179,237.31,237.3,0.03]
[1758076805451,4.88344007,237.34,237.3,0.03]
[1758076805647,2.01658179,237.31,237.3,0.03]
[1758076807052,0.67,237.35,237.3,0.03]
[1758076807260,0.06,237.36,237.31,0.67]
[1758076807442,2.01658179,237.33,237.3,0.03]
[1758076807761,2.01658179,237.31,237.3,0.03]
[1758076808754,0.67,237.33,237.3,0.03]
[1758076808936,2.01658179,237.31,237.3,0.03]
[1758076810152,0.67,237.35,237.3,0.03]
[1758076810458,2.01658179,237.32,237.3,0.7]
[1758076810751,2.01658179,237.32,237.3,0.03]
[1758076811160,2.01658179,237.33,237.3,0.7]
[1758076811751,4.94301407,237.36,237.3,0.7]
[1758076812051,2.01658179,237.33,237.3,4.91406955]
[1758076813231,0.06,237.36,237.31,14.26559401]
[1758076813431,0.06,237.36,237.34,4.21336479]
[1758076813948,0.06,237.36,237.34,4.88336479]
[1758076815251,0.06,237.36,237.34,0.67]
[1758076815437,2.07658179,237.36,237.31,51.46559401]
[1758076815632,0.06,237.36,237.32,13.59559401]
[1758076815956,2.01658179,237.35,237.32,14.26559401]
[1758076816136,2.07658179,237.36,237.32,14.26559401]
[1758076816531,0.06,237.36,237.32,13.59559401]
[1758076817058,0.06,237.36,237.32,18.47915965]
[1758076817252,2.07658179,237.36,237.32,18.47915965]
[1758076818244,0.06,237.36,237.35,39.59559401]
[1758076818439,0.06,237.36,237.35,40.26559401]
[1758076818635,2.07658179,237.36,237.31,0.67]
[1758076818838,2.74658179,237.36,237.34,26.0]
[1758076819559,0.73,237.36,237.34,26.0]
[1758076819758,2.01658179,237.35,237.34,26.0]
[1758076819965,0.06,237.36,237.34,26.0]
[1758076820335,0.06,237.36,237.34,30.21336189]
[1758076821666,0.06,237.36,237.32,17.8091855]
[1758076822147,0.06,237.36,237.32,18.4791855]
[1758076822943,0.06,237.36,237.32,14.26559401]
[1758076823139,0.67,237.35,237.3,0.03]
[1758076823344,2.01658179,237.33,237.3,0.03]
[1758076823769,2.68658179,237.33,237.3,0.03]
[1758076824765,0.67,237.32,237.3,0.03]
[1758076825567,2.70658179,237.31,237.3,0.03]
[1758076829558,2.99090493,237.31,237.3,0.03]
[1758076829872,0.28432314,237.29,237.27,0.03]
[1758076830076,39.26090493,237.28,237.27,0.03]
[1758076830256,39.95090493,237.28,237.27,0.03]
[1758076830574,37.93432314,237.28,237.27,0.03]
[1758076830774,2.99090493,237.28,237.27,0.03]
[1758076830963,0.69,237.28,237.27,0.03]
[1758076831161,4.90407501,237.3,237.27,0.03]
[1758076831366,2.01658179,237.28,237.27,0.03]
[1758076832099,4.21407501,237.3,237.27,0.03]
[1758076832270,2.01658179,237.28,237.27,0.03]
[1758076833586,2.70658179,237.28,237.27,0.03]
[1758076834400,0.69,237.3,237.27,0.03]
[1758076834699,2.01658179,237.28,237.27,0.03]
[1758076836592,4.2142709,237.29,237.27,0.03]
[1758076836791,2.70658179,237.28,237.27,0.03]
[1758076836978,2.01658179,237.28,237.27,0.03]
[1758076839681,2.01658179,237.31,237.27,0.72]
[1758076839878,2.01658179,237.31,237.28,0.69]
[1758076840079,2.01658179,237.31,237.27,0.03]
[1758076840285,2.01658179,237.31,237.27,0.72]
[1758076840514,2.01658179,237.31,237.27,0.03]
[1758076840677,2.01658179,237.31,237.28,0.69]
[1758076840877,2.01658179,237.31,237.27,0.03]
[1758076841210,2.01658179,237.3,237.28,0.69]
[1758076841392,2.01658179,237.3,237.27,0.03]
[1758076841594,2.01658179,237.3,237.27,0.72]
[1758076842500,2.01658179,237.32,237.27,4.93455067]
[1758076842689,2.01658179,237.32,237.28,0.69]
[1758076842891,2.01658179,237.32,237.29,0.69]
[1758076843618,2.01658179,237.3,237.27,4.24455067]
[1758076843799,2.01658179,237.29,237.27,0.03]
[1758076844003,0.69,237.3,237.27,0.03]
[1758076844295,0.69,237.33,237.27,0.72]
[1758076844483,2.01658179,237.3,237.27,0.72]
[1758076845017,0.69,237.34,237.28,0.69]
[1758076845196,2.01658179,237.3,237.28,0.69]
[1758076845694,2.01658179,237.3,237.27,0.03]
[1758076845695,2.01658179,237.29,237.27,0.03]
[1758076845883,1.98042264,237.29,237.27,0.03]
[1758076846080,1.29042264,237.29,237.27,0.03]
[1758076846805,0.69,237.28,237.27,0.03]
[1758076846992,1.98042264,237.29,237.27,0.03]
[1758076847307,1.98042264,237.28,237.27,0.03]
[1758076848189,1.29042264,237.28,237.27,0.03]
[1758076854519,1.29042264,237.28,237.27,0.72]
[1758076855121,1.29042264,237.28,237.27,0.03]
[1758076855411,0.06,237.3,237.27,0.03]
[1758076855794,1.29042264,237.29,237.27,0.03]
[1758076856807,2.01042264,237.29,237.27,0.03]
[1758076856991,2.01042264,237.28,237.27,0.03]
[1758076857590,1.29042264,237.28,237.27,0.03]
[1758076858523,0.06,237.3,237.27,26.71]
[1758076858692,0.06,237.3,237.28,0.68]
[1758076859011,0.06,237.3,237.27,26.03]
[1758076859319,0.06,237.3,237.27,26.71]
[1758076860025,2.01042264,237.29,237.27,26.03]
[1758076860186,2.01042264,237.29,237.27,0.03]
[1758076860593,1.29042264,237.29,237.27,0.03]
[1758076860891,0.72,237.28,237.27,26.03]
[1758076861391,2.01042264,237.28,237.27,0.03]
[1758076864504,0.78,237.3,237.27,0.03]
[1758076864822,1.29042264,237.28,237.27,0.03]
[1758076865632,2.01042264,237.28,237.27,0.03]
[1758076866332,2.29474578,237.28,237.27,0.03]
[1758076866623,6.50917598,237.28,237.27,0.03]
[1758076868210,5.21875334,237.28,237.27,0.03]
[1758076868423,6.50917598,237.28,237.27,0.03]
[1758076871530,138.20917598,237.28,237.27,0.03]
[1758076873023,143.37086654,237.28,237.27,0.03]
[1758076873218,0.28432314,237.27,237.25,0.03]
[1758076873405,1.29042264,237.26,237.25,0.03]
[1758076873607,2.01042264,237.26,237.25,0.03]
[1758076874514,0.72,237.26,237.25,0.03]
[1758076874717,2.01042264,237.26,237.25,0.03]
[1758076875933,6.2252081,237.26,237.25,0.03]
[1758076877239,11.38689866,237.26,237.25,0.03]
[1758076878022,6.2252081,237.26,237.25,0.03]
[1758076878826,0.28432314,237.27,237.25,0.03]
[1758076879031,1.29042264,237.26,237.25,0.03]
[1758076882047,5.5052081,237.26,237.25,0.03]
[1758076884142,6.2252081,237.26,237.25,0.03]
[1758076885044,5.5052081,237.26,237.25,0.03]
[1758076886250,1.29042264,237.26,237.25,0.03]
[1758076886452,5.5052081,237.26,237.25,0.03]
[1758076888445,1.29042264,237.26,237.25,0.03]
[1758076890253,5.5052081,237.26,237.25,0.03]
[1758076894748,6.2052081,237.26,237.25,0.03]
[1758076896264,1.29042264,237.26,237.25,0.03]
[1758076899562,4.97465316,237.27,237.25,0.03]
[1758076899761,1.29042264,237.26,237.25,0.03]
[1758076900565,5.5052081,237.26,237.25,0.03]
[1758076900748,1.29042264,237.26,237.25,0.03]
[1758076901066,6.2052081,237.26,237.25,0.03]
[1758076902750,5.5052081,237.26,237.25,0.03]
[1758076903170,6.2052081,237.26,237.25,0.03]
[1758076903673,1.29042264,237.26,237.25,0.03]
[1758076904255,0.06,237.27,237.25,0.73]
[1758076905673,0.06,237.27,237.26,17.81037947]
[1758076905968,0.06,237.27,237.26,19.4981788]
[1758076906154,0.06,237.27,237.26,20.1981788]
[1758076907273,0.06,237.27,237.26,18.51037947]
[1758076907575,0.06,237.27,237.26,20.19789397]
[1758076908067,0.06,237.27,237.26,18.51037947]
[1758076909558,0.06,237.27,237.26,53.29037947]
[1758076910068,0.06,237.27,237.26,39.67478546]
[1758076910577,0.06,237.27,237.26,39.65478546]
[1758076911377,0.06,237.27,237.26,55.26626623]
[1758076911679,0.06,237.27,237.26,60.04005593]
[1758076914660,0.06,237.27,237.26,60.32437907]
[1758076918281,0.06,237.3,237.29,39.59559401]
[1758076918488,0.06,237.3,237.29,74.17559401]
[1758076918690,0.06,237.3,237.29,74.86559401]
[1758076919189,0.06,237.3,237.29,80.76707639]
[1758076919697,0.06,237.3,237.29,82.78296315]
[1758076920562,0.06,237.3,237.29,80.07707639]
[1758076921286,0.06,237.32,237.3,13.59559401]
[1758076921496,0.06,237.32,237.31,15.61148077]
[1758076921692,0.06,237.32,237.31,16.30148077]
[1758076922069,0.06,237.32,237.31,50.80148077]
[1758076922470,0.06,237.32,237.31,52.48849707]
[1758076922672,0.06,237.32,237.31,56.7023945]
[1758076927497,0.06,237.32,237.31,54.68650774]
[1758076927705,0.06,237.32,237.31,56.7023945]
[1758076935010,0.06,237.33,237.32,13.59559401]
[1758076935213,0.06,237.33,237.32,16.30148077]
[1758076935511,0.06,237.33,237.32,14.28559401]
[1758076935714,0.06,237.33,237.32,17.98842593]
[1758076936081,1e-08,237.33,237.32,17.98842593]
[1758076936283,0.06,237.35,237.34,39.59559401]
[1758076936483,0.06,237.35,237.34,75.83148077]
[1758076936682,0.06,237.35,237.34,76.52148077]
[1758076936903,0.06,237.35,237.34,78.20828365]
[1758076937090,0.06,237.35,237.34,82.42164844]
[1758076938914,0.06,237.36,237.35,17.80878128]
[1758076939123,0.06,237.36,237.35,20.51466804]
[1758076939632,0.06,237.36,237.35,25.89062573]
[1758076939819,0.06,237.36,237.35,22.5305548]
[1758076940018,0.06,237.36,237.35,21.8405548]
[1758076940229,0.06,237.36,237.35,22.5305548]
[1758076940416,0.72,237.42,237.41,39.59559401]
[1758076940621,0.72,237.42,237.41,73.81559401]
[1758076941024,0.72,237.42,237.41,80.04360325]
[1758076941653,0.72,237.44,237.41,80.04360325]
[1758076941941,0.72,237.43,237.41,80.04360325]
[1758076942144,0.72,237.42,237.41,80.04360325]
[1758076944044,0.78,237.42,237.41,80.04360325]
[1758076944336,0.78,237.42,237.41,78.02771649]
[1758076945617,0.78,237.42,237.41,90.7614378]
[1758076946432,0.06,237.42,237.41,90.7614378]
[1758076946814,0.06,237.42,237.41,92.77732456]
[1758076949037,0.06,237.42,237.41,90.7614378]
[1758076949232,0.71,237.42,237.41,90.7614378]
[1758076949925,0.06,237.42,237.41,90.7614378]
[1758076950715,0.06,237.42,237.41,92.44788508]
[1758076951234,0.71,237.42,237.41,90.7614378]
[1758076952137,0.06,237.42,237.41,90.7614378]
[1758076952537,0.71,237.42,237.41,92.77732456]
[1758076952727,0.71,237.42,237.41,90.7614378]
[1758076953117,0.06,237.42,237.41,90.7614378]
[1758076955150,0.06,237.42,237.41,92.44788509]
[1758076955334,0.06,237.42,237.41,90.7614378]
[1758076955532,0.06,237.42,237.41,92.44788509]
[1758076956543,0.06,237.42,237.41,90.7614378]
[1758076956741,0.06,237.42,237.41,92.44788509]
[1758076956938,0.06,237.42,237.41,90.7614378]
[1758076957137,0.71,237.42,237.41,90.7614378]
[1758076957542,0.06,237.42,237.41,90.7614378]
[1758076958426,0.06,237.42,237.41,92.44788509]
[1758076959329,0.06,237.42,237.41,90.7614378]
[1758076960143,0.06,237.42,237.41,92.77732456]
[1758076960334,0.06,237.42,237.41,93.49732456]
[1758076960529,0.06,237.42,237.41,92.77732456]
[1758076962449,0.06,237.42,237.41,93.27732456]
[1758076963426,0.71,237.42,237.41,93.27732456]
[1758076964228,0.71,237.42,237.41,91.2614378]
[1758076967631,0.71,237.42,237.41,73.45372131]
[1758076968046,1.99886473,237.42,237.41,73.45372131]
[1758076968248,1.99886473,237.42,237.41,13.23372131]
[1758076968451,6.21088261,237.42,237.35,17.80863117]
[1758076968643,1.28886473,237.38,237.37,34.18]
[1758076968959,1.93886473,237.38,237.37,46.7084714]
[1758076969466,0.65,237.38,237.37,46.7084714]
[1758076969672,1.93886473,237.38,237.37,46.7084714]
[1758076970753,1.93886473,237.38,237.37,12.5284714]
[1758076970943,1.93886473,237.38,237.36,34.21]
[1758076971138,1.93886473,237.37,237.36,0.03]
[1758076972762,1.93886473,237.37,237.36,12.64246688]
[1758076972973,1.93886473,237.37,237.36,0.03]
[1758076974630,0.65,237.37,237.36,0.03]
[1758076975161,1.93886473,237.37,237.36,0.03]
[1758076976632,0.65,237.37,237.36,0.03]
[1758076979558,1.93886473,237.37,237.36,0.03]
[1758076986589,6.15169701,237.37,237.36,0.03]
[1758076990272,6.43602015,237.37,237.36,0.03]
[1758076990480,1.28886473,237.34,237.33,0.03]
[1758076991012,1.99886473,237.34,237.33,0.03]
[1758076993114,6.21222952,237.34,237.33,0.03]
[1758076994623,40.35222952,237.34,237.33,0.03]
[1758076997099,0.28432314,237.33,237.3,0.03]
[1758076997298,1.28886473,237.31,237.28,0.03]
[1758076997500,1.28886473,237.29,237.28,0.03]
[1758076997700,1.28886473,237.29,237.25,0.03]
[1758076997921,6.44432365,237.27,237.25,0.03]
[1758076998303,7.15432365,237.27,237.25,0.03]
[1758076998625,0.71,237.26,237.25,0.03]
[1758076999015,4.92478546,237.26,237.25,0.03]
[1758076999525,15.46174912,237.26,237.23,0.03]
[1758076999701,1.28886473,237.24,237.23,0.03]
[1758077000218,1.99886473,237.24,237.23,0.03]
[1758077001116,40.35400551,237.24,237.23,0.03]
[1758077001318,6.21400551,237.24,237.23,0.03]
[1758077001509,40.35400551,237.24,237.23,0.03]
[1758077001703,1.28886473,237.25,237.23,0.72]
[1758077002220,1.34886473,237.31,237.23,0.72]
[1758077002597,0.77,237.31,237.23,0.72]
[1758077002805,4.2142526,237.29,237.23,0.72]
[1758077003702,1.99886473,237.3,237.23,0.72]
[1758077004620,0.71,237.3,237.23,0.72]
[1758077004825,4.92408874,237.3,237.23,0.72]
[1758077005000,6.21295347,237.3,237.23,0.72]
[1758077005919,6.21295347,237.3,237.23,4.93530008]
[1758077006122,4.21408874,237.3,237.24,0.7]
[1758077006625,4.90408874,237.3,237.24,0.7]
[1758077007630,0.06,237.31,237.24,6.20392342]
[1758077007838,0.06,237.31,237.25,0.7]
[1758077008816,0.06,237.31,237.26,4.21478546]
[1758077009022,0.06,237.31,237.27,0.7]
[1758077009218,0.06,237.31,237.28,0.7]
[1758077010633,0.06,237.31,237.29,0.7]
[1758077011009,0.06,237.31,237.3,0.7]
[1758077011321,0.06,237.31,237.28,14.29559401]
[1758077011802,0.06,237.31,237.28,13.59559401]
[1758077012010,0.06,237.31,237.29,0.7]
[1758077015429,0.06,237.31,237.28,13.59559401]
[1758077015635,0.06,237.31,237.29,0.7]
[1758077016011,0.06,237.31,237.27,4.91459258]
[1758077016211,0.06,237.31,237.28,0.7]
[1758077016910,0.06,237.31,237.27,4.21459258]
[1758077017120,0.06,237.31,237.28,0.7]
[1758077017543,0.06,237.31,237.29,0.7]
[1758077018524,0.06,237.31,237.27,6.20345731]
[1758077018724,0.06,237.31,237.28,0.7]
[1758077019133,0.06,237.31,237.27,5.50345731]
[1758077019434,0.06,237.31,237.29,0.7]
[1758077019632,0.06,237.31,237.28,0.7]
[1758077019932,0.69,237.3,237.26,26.0]
[1758077020129,0.69,237.29,237.26,26.0]
[1758077020325,4.27397629,237.31,237.25,34.1]
[1758077020326,0.69,237.28,237.25,34.1]
[1758077020730,1.97886473,237.3,237.25,34.1]
[1758077020926,0.69,237.29,237.25,34.1]
[1758077021133,0.69,237.29,237.25,34.8]
[1758077021326,0.69,237.28,237.25,34.1]
[1758077021733,1.97886473,237.28,237.25,34.1]
[1758077021930,1.28886473,237.26,237.24,0.03]
[1758077025146,0.75,237.31,237.25,0.7]
[1758077025348,2.03886473,237.31,237.25,0.7]
[1758077025743,6.25280006,237.31,237.24,0.03]
[1758077025920,1.28886473,237.29,237.24,0.03]
[1758077026240,1.28886473,237.27,237.24,0.03]
[1758077026739,1.97886473,237.27,237.24,0.03]
[1758077027133,1.28886473,237.27,237.24,0.03]
[1758077027338,1.28886473,237.27,237.24,0.73]
[1758077027544,1.97886473,237.27,237.24,0.03]
[1758077027844,1.28886473,237.27,237.24,0.03]
[1758077028250,0.06,237.31,237.24,0.03]
[1758077028251,0.06,237.31,237.25,0.7]
[1758077028431,0.06,237.31,237.26,13.59559401]
[1758077028628,0.06,237.31,237.27,0.7]
[1758077028829,0.06,237.31,237.3,13.59559401]
[1758077029022,0.06,237.31,237.3,14.88445874]
[1758077029247,0.06,237.31,237.3,14.29559401]
[1758077029953,0.06,237.31,237.3,16.31071524]
[1758077031154,0.06,237.31,237.3,50.37071524]
[1758077031351,0.06,237.31,237.3,16.31071524]
[1758077031647,0.06,237.31,237.3,50.37071524]
[1758077037951,0.06,237.31,237.3,52.05794502]
[1758077038578,0.06,237.31,237.3,52.34226816]
[1758077040455,0.06,237.31,237.3,52.30226816]
[1758077041367,0.06,237.31,237.3,18.28226816]
[1758077041567,0.06,237.31,237.3,52.30226816]
[1758077043979,0.06,237.34,237.32,13.59559401]
[1758077044161,0.06,237.34,237.33,49.61071524]
[1758077044548,0.06,237.34,237.33,50.32071524]
[1758077044754,0.06,237.34,237.33,52.00758925]
[1758077046099,0.06,237.34,237.33,56.22113157]
[1758077049863,0.06,237.34,237.33,59.60539036]
[1758077050578,0.06,237.34,237.33,25.60539036]
[1758077050883,0.06,237.34,237.33,59.58539036]
[1758077051378,0.06,237.34,237.33,23.59026913]
[1758077051679,0.06,237.34,237.33,58.87539036]
[1758077053877,0.06,237.34,237.33,59.58539036]
[1758077054074,0.06,237.34,237.33,53.45601034]
[1758077054381,0.06,237.34,237.33,55.47113157]
[1758077056561,0.06,237.34,237.33,56.18113157]
[1758077057486,0.06,237.34,237.33,54.16601034]
[1758077057686,0.06,237.34,237.33,55.47113157]
[1758077059788,0.06,237.34,237.33,56.18113157]
[1758077059994,0.06,237.34,237.33,55.47113157]
[1758077061997,0.06,237.34,237.33,56.18113157]
[1758077062488,0.06,237.34,237.33,55.47113157]
[1758077062791,0.72,237.34,237.33,19.49601034]
[1758077062983,0.72,237.34,237.33,51.74913633]
[1758077063196,0.72,237.34,237.33,77.74913633]
[1758077064295,2.73512123,237.34,237.31,1.68708746]
[1758077064605,2.01512123,237.32,237.29,17.80984661]
[1758077064787,2.67512123,237.31,237.3,13.59559401]
[1758077064973,2.67512123,237.31,237.3,47.51559401]
[1758077066380,2.67512123,237.31,237.3,51.72966902]
[1758077070177,0.66,237.31,237.3,17.80966902]
[1758077070377,0.66,237.31,237.3,51.72966902]
[1758077071998,0.06,237.34,237.3,62.98485654]
[1758077072198,0.06,237.34,237.32,13.59559401]
[1758077072374,0.06,237.34,237.33,47.49559401]
[1758077072985,0.06,237.34,237.33,51.70913633]
[1758077082211,0.06,237.36,237.35,39.59559401]
[1758077082507,0.06,237.36,237.35,73.45559401]
[1758077082813,0.06,237.36,237.35,74.17559401]
[1758077084206,0.06,237.36,237.35,78.38878128]
[1758077084714,0.06,237.36,237.35,80.07551303]
[1758077084888,0.06,237.36,237.35,78.38878128]
[1758077085089,0.06,237.36,237.35,77.66878128]
[1758077085503,0.72,237.36,237.35,77.66878128]
[1758077085792,0.06,237.36,237.35,43.80878128]
[1758077085987,0.06,237.36,237.35,77.66878128]
[1758077088310,0.06,237.36,237.35,43.80878128]